[Event "Titled Tuesday Blitz August 08 Late 2023"]
[White "Pinto, Daniel"]
[Black "Vlassov, Nikolai"]
[WhiteFideId "3303144"]
[BlackFideId "4103360"]
[WhiteElo "2399"]
[BlackElo "2595"]
[Result "1-0"]
[Round "3"]
[TimeControl "180+1"]
[Date "2023.08.08"]
[WhiteClock "0:00:09"]
[BlackClock "0:00:03"]
[Board "100"]

1. e4 {[%clk 0:03:00]}  Nc6 {[%clk 0:02:58]} 2. Nf3 {[%clk 0:02:59]}  d5 {[%clk 0:02:58]} 3. Nc3 {[%clk 0:02:51]}  d4 {[%clk 0:02:55]} 4. Ne2 {[%clk 0:02:51]}  e5 {[%clk 0:02:54]} 5. d3 {[%clk 0:02:51]}  Bg4 {[%clk 0:02:42]} 6. Ng3 {[%clk 0:02:51]}  Bb4+ {[%clk 0:02:40]} 7. Bd2 {[%clk 0:02:44]}  Bxf3 {[%clk 0:02:34]} 8. Qxf3 {[%clk 0:02:03]}  Bxd2+ {[%clk 0:02:33]} 9. Kxd2 {[%clk 0:02:02]}  Qg5+ {[%clk 0:02:33]} 10. Kd1 {[%clk 0:02:02]}  Nge7 {[%clk 0:02:31]} 11. h4 {[%clk 0:02:01]}  Qh6 {[%clk 0:02:27]} 12. Qg4 {[%clk 0:01:49]}  g6 {[%clk 0:02:24]} 13. h5 {[%clk 0:01:41]}  Qg7 {[%clk 0:02:19]} 14. Be2 {[%clk 0:01:30]}  Qf6 {[%clk 0:02:10]} 15. Rf1 {[%clk 0:01:08]}  Qf4 {[%clk 0:02:01]} 16. c3 {[%clk 0:01:08]}  O-O {[%clk 0:01:53]} 17. Kc2 {[%clk 0:01:00]}  Qxg4 {[%clk 0:01:51]} 18. Bxg4 {[%clk 0:01:00]}  f5 {[%clk 0:01:52]} 19. exf5 {[%clk 0:00:43]}  gxf5 {[%clk 0:01:52]} 20. Be2 {[%clk 0:00:40]}  Rad8 {[%clk 0:01:40]} 21. Rh1 {[%clk 0:00:24]}  Nd5 {[%clk 0:01:40]} 22. Bf3 {[%clk 0:00:23]}  Nf4 {[%clk 0:01:31]} 23. Rad1 {[%clk 0:00:22]}  Rd6 {[%clk 0:01:20]} 24. a3 {[%clk 0:00:18]}  dxc3 {[%clk 0:01:17]} 25. bxc3 {[%clk 0:00:18]}  Nxd3 {[%clk 0:00:57]} 26. Rxd3 {[%clk 0:00:15]}  Rxd3 {[%clk 0:00:57]} 27. Kxd3 {[%clk 0:00:15]}  e4+ {[%clk 0:00:57]} 28. Nxe4 {[%clk 0:00:14]}  fxe4+ {[%clk 0:00:57]} 29. Bxe4 {[%clk 0:00:15]}  Rxf2 {[%clk 0:00:54]} 30. Ke3 {[%clk 0:00:11]}  Rf6 {[%clk 0:00:49]} 31. Rd1 {[%clk 0:00:09]}  Ne5 {[%clk 0:00:45]} 32. Rd5 {[%clk 0:00:07]}  Ng4+ {[%clk 0:00:35]} 33. Kd4 {[%clk 0:00:06]}  h6 {[%clk 0:00:26]} 34. Rd8+ {[%clk 0:00:06]}  Kg7 {[%clk 0:00:23]} 35. Rd7+ {[%clk 0:00:06]}  Rf7 {[%clk 0:00:19]} 36. Rxf7+ {[%clk 0:00:07]}  Kxf7 {[%clk 0:00:19]} 37. Bxb7 {[%clk 0:00:08]}  Nf6 {[%clk 0:00:19]} 38. Bf3 {[%clk 0:00:07]}  Ke6 {[%clk 0:00:19]} 39. Kc5 {[%clk 0:00:07]}  Kd7 {[%clk 0:00:19]} 40. a4 {[%clk 0:00:07]}  Ng8 {[%clk 0:00:15]} 41. Kd5 {[%clk 0:00:04]}  Ne7+ {[%clk 0:00:13]} 42. Ke5 {[%clk 0:00:05]}  Ng8 {[%clk 0:00:13]} 43. g4 {[%clk 0:00:04]}  a5 {[%clk 0:00:12]} 44. Kf5 {[%clk 0:00:04]}  Kd6 {[%clk 0:00:05]} 45. g5 {[%clk 0:00:03]}  Ne7+ {[%clk 0:00:04]} 46. Kf6 {[%clk 0:00:03]}  hxg5 {[%clk 0:00:03]} 47. Kxg5 {[%clk 0:00:03]}  Ng8 {[%clk 0:00:01]} 48. h6 {[%clk 0:00:03]}  Nxh6 {[%clk 0:00:01]} 49. Kxh6 {[%clk 0:00:03]}  Kc5 {[%clk 0:00:02]} 50. Be2 {[%clk 0:00:04]}  Kd5 {[%clk 0:00:02]} 51. Bd3 {[%clk 0:00:04]}  Ke5 {[%clk 0:00:02]} 52. Kg5 {[%clk 0:00:04]}  c6 {[%clk 0:00:02]} 53. Kg4 {[%clk 0:00:04]}  Kd5 {[%clk 0:00:02]} 54. Kf3 {[%clk 0:00:05]}  Ke5 {[%clk 0:00:01]} 55. Ke3 {[%clk 0:00:05]}  Kd5 {[%clk 0:00:01]} 56. Be2 {[%clk 0:00:06]}  Kc5 {[%clk 0:00:02]} 57. Kd3 {[%clk 0:00:06]}  Kd5 {[%clk 0:00:02]} 58. Bf3+ {[%clk 0:00:06]}  Kc5 {[%clk 0:00:03]} 59. Be4 {[%clk 0:00:06]}  Kd6 {[%clk 0:00:03]} 60. Kc4 {[%clk 0:00:07]}  Ke5 {[%clk 0:00:03]} 61. Bxc6 {[%clk 0:00:07]}  Kd6 {[%clk 0:00:04]} 62. Bg2 {[%clk 0:00:07]}  Kc7 {[%clk 0:00:04]} 63. Kb5 {[%clk 0:00:08]}  Kb8 {[%clk 0:00:05]} 64. Kxa5 {[%clk 0:00:08]}  Ka7 {[%clk 0:00:03]} 65. Kb5 {[%clk 0:00:09]} 1-0


[Site "https://www.chess.com"]

[Event "Titled Tuesday Blitz August 08 Late 2023"]
[White "Rego, Pedro Filipe"]
[Black "Principe, Gerson"]
[WhiteFideId "1904310"]
[BlackFideId "3804550"]
[WhiteElo "2385"]
[BlackElo "2585"]
[Result "1-0"]
[Round "3"]
[TimeControl "180+1"]
[Date "2023.08.08"]
[WhiteClock "0:00:06"]
[BlackClock "0:00:00"]
[Board "101"]

1. d4 {[%clk 0:03:00]}  Nf6 {[%clk 0:02:59]} 2. Bf4 {[%clk 0:02:59]}  c5 {[%clk 0:02:57]} 3. d5 {[%clk 0:02:59]}  d6 {[%clk 0:02:40]} 4. Nc3 {[%clk 0:02:57]}  g6 {[%clk 0:02:37]} 5. e4 {[%clk 0:02:53]}  Bg7 {[%clk 0:02:37]} 6. h3 {[%clk 0:02:50]}  O-O {[%clk 0:02:38]} 7. Nf3 {[%clk 0:02:50]}  a6 {[%clk 0:02:38]} 8. a4 {[%clk 0:02:48]}  b6 {[%clk 0:02:39]} 9. Nd2 {[%clk 0:02:46]}  Nbd7 {[%clk 0:02:36]} 10. Be2 {[%clk 0:02:40]}  Rb8 {[%clk 0:02:33]} 11. O-O {[%clk 0:02:36]}  Ne8 {[%clk 0:02:20]} 12. Nc4 {[%clk 0:02:31]}  Nc7 {[%clk 0:02:17]} 13. Bg4 {[%clk 0:02:21]}  Ne5 {[%clk 0:01:57]} 14. Bxe5 {[%clk 0:02:14]}  Bxe5 {[%clk 0:01:26]} 15. Nxe5 {[%clk 0:02:12]}  dxe5 {[%clk 0:01:25]} 16. Qe2 {[%clk 0:01:49]}  Qd6 {[%clk 0:01:23]} 17. Bxc8 {[%clk 0:01:36]}  Rbxc8 {[%clk 0:01:21]} 18. Nb1 {[%clk 0:01:34]}  f5 {[%clk 0:01:12]} 19. f3 {[%clk 0:01:31]}  e6 {[%clk 0:01:11]} 20. c4 {[%clk 0:01:22]}  exd5 {[%clk 0:01:08]} 21. exd5 {[%clk 0:01:20]}  Rce8 {[%clk 0:01:07]} 22. Nc3 {[%clk 0:01:17]}  Re7 {[%clk 0:01:03]} 23. Rfd1 {[%clk 0:01:15]}  Rfe8 {[%clk 0:01:03]} 24. a5 {[%clk 0:01:16]}  bxa5 {[%clk 0:00:41]} 25. Rxa5 {[%clk 0:01:11]}  e4 {[%clk 0:00:42]} 26. fxe4 {[%clk 0:01:09]}  fxe4 {[%clk 0:00:42]} 27. Qe3 {[%clk 0:01:06]}  Rf7 {[%clk 0:00:30]} 28. Rxc5 {[%clk 0:01:01]}  Rfe7 {[%clk 0:00:24]} 29. Rc6 {[%clk 0:00:53]}  Qb4 {[%clk 0:00:22]} 30. d6 {[%clk 0:00:45]}  Re6 {[%clk 0:00:22]} 31. Rxc7 {[%clk 0:00:42]}  Rxd6 {[%clk 0:00:23]} 32. Rxd6 {[%clk 0:00:38]}  Qxd6 {[%clk 0:00:23]} 33. Nd5 {[%clk 0:00:37]}  Rf8 {[%clk 0:00:16]} 34. Qxe4 {[%clk 0:00:26]}  Qg3 {[%clk 0:00:10]} 35. Qd4 {[%clk 0:00:11]}  Qe1+ {[%clk 0:00:04]} 36. Kh2 {[%clk 0:00:11]}  Rf7 {[%clk 0:00:03]} 37. Rxf7 {[%clk 0:00:11]}  Kxf7 {[%clk 0:00:04]} 38. Qf6+ {[%clk 0:00:11]}  Ke8 {[%clk 0:00:04]} 39. Qc6+ {[%clk 0:00:07]}  Kf8 {[%clk 0:00:03]} 40. Qd6+ {[%clk 0:00:07]}  Kg8 {[%clk 0:00:02]} 41. Qd8+ {[%clk 0:00:06]}  Kg7 {[%clk 0:00:02]} 42. Qd7+ {[%clk 0:00:07]}  Kg8 {[%clk 0:00:03]} 43. Qg4 {[%clk 0:00:06]}  Qe5+ {[%clk 0:00:02]} 44. Qf4 {[%clk 0:00:07]}  Qxb2 {[%clk 0:00:02]} 45. Nf6+ {[%clk 0:00:05]}  Kg7 {[%clk 0:00:02]} 46. Ng4 {[%clk 0:00:06]}  Qb6 {[%clk 0:00:01]} 47. Qe5+ {[%clk 0:00:06]}  Kg8 {[%clk 0:00:01]} 48. c5 {[%clk 0:00:07]}  Kf7 {[%clk 0:00:00]} 49. cxb6 {[%clk 0:00:06]} 1-0


[Site "https://www.chess.com"]

[Event "Titled Tuesday Blitz August 08 Late 2023"]
[White "Barria Santos, Jose Guilherme"]
[Black "Dwilewicz, Katarzyna"]
[WhiteFideId "1939300"]
[BlackFideId "1148486"]
[WhiteElo "2577"]
[BlackElo "2374"]
[Result "1-0"]
[Round "3"]
[TimeControl "180+1"]
[Date "2023.08.08"]
[WhiteClock "0:00:05"]
[BlackClock "0:00:00"]
[Board "104"]

1. e4 {[%clk 0:02:57]}  c5 {[%clk 0:02:59]} 2. Nf3 {[%clk 0:02:57]}  d6 {[%clk 0:02:59]} 3. Bb5+ {[%clk 0:02:57]}  Nd7 {[%clk 0:02:58]} 4. c4 {[%clk 0:02:54]}  a6 {[%clk 0:02:58]} 5. Ba4 {[%clk 0:02:54]}  Nf6 {[%clk 0:02:56]} 6. Nc3 {[%clk 0:02:54]}  g6 {[%clk 0:02:52]} 7. O-O {[%clk 0:02:53]}  Bg7 {[%clk 0:02:53]} 8. d3 {[%clk 0:02:47]}  O-O {[%clk 0:02:52]} 9. Bf4 {[%clk 0:02:46]}  h6 {[%clk 0:02:27]} 10. h3 {[%clk 0:02:26]}  Kh7 {[%clk 0:02:27]} 11. Re1 {[%clk 0:02:25]}  e5 {[%clk 0:02:24]} 12. Be3 {[%clk 0:02:24]}  Nb6 {[%clk 0:02:17]} 13. Rb1 {[%clk 0:02:22]}  Nxa4 {[%clk 0:02:16]} 14. Qxa4 {[%clk 0:02:22]}  Bd7 {[%clk 0:02:16]} 15. Qa3 {[%clk 0:02:23]}  b5 {[%clk 0:02:15]} 16. b4 {[%clk 0:02:22]}  a5 {[%clk 0:02:03]} 17. Nxb5 {[%clk 0:02:07]}  axb4 {[%clk 0:01:59]} 18. Qb3 {[%clk 0:02:00]}  Bxb5 {[%clk 0:01:56]} 19. cxb5 {[%clk 0:02:00]}  Qa5 {[%clk 0:01:52]} 20. Rb2 {[%clk 0:01:47]}  Qxb5 {[%clk 0:01:52]} 21. Qc2 {[%clk 0:01:36]}  Qa4 {[%clk 0:01:47]} 22. Qb1 {[%clk 0:01:35]}  Nd7 {[%clk 0:01:44]} 23. Nd2 {[%clk 0:01:35]}  Nb6 {[%clk 0:01:39]} 24. Qd1 {[%clk 0:01:32]}  Qxd1 {[%clk 0:01:36]} 25. Rxd1 {[%clk 0:01:33]}  Ra3 {[%clk 0:01:35]} 26. Nc4 {[%clk 0:01:31]}  Nxc4 {[%clk 0:01:30]} 27. dxc4 {[%clk 0:01:32]}  Rfa8 {[%clk 0:01:24]} 28. Rxd6 {[%clk 0:01:26]}  Rxa2 {[%clk 0:01:24]} 29. Rxa2 {[%clk 0:01:22]}  Rxa2 {[%clk 0:01:25]} 30. Bxc5 {[%clk 0:01:23]}  Rc2 {[%clk 0:00:59]} 31. Bxb4 {[%clk 0:01:14]}  Rxc4 {[%clk 0:00:59]} 32. Bd2 {[%clk 0:01:10]}  Rxe4 {[%clk 0:00:59]} 33. Be3 {[%clk 0:01:06]}  f5 {[%clk 0:00:48]} 34. Rd7 {[%clk 0:01:06]}  g5 {[%clk 0:00:48]} 35. Bc5 {[%clk 0:01:02]}  Kg6 {[%clk 0:00:47]} 36. Rd6+ {[%clk 0:01:02]}  Bf6 {[%clk 0:00:47]} 37. Ra6 {[%clk 0:00:59]}  Kf7 {[%clk 0:00:39]} 38. Ra7+ {[%clk 0:00:59]}  Ke6 {[%clk 0:00:39]} 39. Rh7 {[%clk 0:00:58]}  Rc4 {[%clk 0:00:33]} 40. Bf8 {[%clk 0:00:58]}  e4 {[%clk 0:00:31]} 41. Rxh6 {[%clk 0:00:49]}  Ke5 {[%clk 0:00:26]} 42. Ba3 {[%clk 0:00:29]}  Rc2 {[%clk 0:00:17]} 43. g4 {[%clk 0:00:25]}  f4 {[%clk 0:00:16]} 44. Kf1 {[%clk 0:00:25]}  f3 {[%clk 0:00:14]} 45. Kg1 {[%clk 0:00:22]}  Bd8 {[%clk 0:00:14]} 46. Bd6+ {[%clk 0:00:20]}  Kd5 {[%clk 0:00:12]} 47. Bg3 {[%clk 0:00:21]}  Rc1+ {[%clk 0:00:08]} 48. Kh2 {[%clk 0:00:21]}  Rb1 {[%clk 0:00:07]} 49. Rd6+ {[%clk 0:00:20]}  Kc4 {[%clk 0:00:06]} 50. Rxd8 {[%clk 0:00:21]}  Rb2 {[%clk 0:00:05]} 51. h4 {[%clk 0:00:13]}  e3 {[%clk 0:00:05]} 52. Kh3 {[%clk 0:00:06]}  exf2 {[%clk 0:00:03]} 53. Rd1 {[%clk 0:00:06]}  Re2 {[%clk 0:00:03]} 54. Rf1 {[%clk 0:00:06]}  gxh4 {[%clk 0:00:04]} 55. Bxh4 {[%clk 0:00:06]}  Kd3 {[%clk 0:00:04]} 56. Rxf2 {[%clk 0:00:05]}  Ke4 {[%clk 0:00:03]} 57. Rxe2+ {[%clk 0:00:04]}  fxe2 {[%clk 0:00:03]} 58. Be1 {[%clk 0:00:05]}  Kf3 {[%clk 0:00:00]} 59. g5 {[%clk 0:00:05]} 1-0


[Site "https://www.chess.com"]

[Event "Titled Tuesday Blitz August 08 Late 2023"]
[White "Leschinsky, Gary"]
[Black "Ismagilov, Damir"]
[WhiteFideId "30951321"]
[BlackFideId "34199982"]
[WhiteElo "2368"]
[BlackElo "2574"]
[Result "1/2-1/2"]
[Round "3"]
[TimeControl "180+1"]
[Date "2023.08.08"]
[WhiteClock "0:00:22"]
[BlackClock "0:00:11"]
[Board "105"]

1. d4 {[%clk 0:03:00]}  f5 {[%clk 0:02:58]} 2. Bg5 {[%clk 0:02:58]}  Nf6 {[%clk 0:02:55]} 3. Bxf6 {[%clk 0:02:56]}  exf6 {[%clk 0:02:56]} 4. e3 {[%clk 0:02:53]}  d5 {[%clk 0:02:53]} 5. Bd3 {[%clk 0:02:53]}  Bd6 {[%clk 0:02:44]} 6. c4 {[%clk 0:02:48]}  c6 {[%clk 0:02:41]} 7. cxd5 {[%clk 0:02:48]}  cxd5 {[%clk 0:02:41]} 8. Nc3 {[%clk 0:02:48]}  Be6 {[%clk 0:02:39]} 9. Qb3 {[%clk 0:02:46]}  Qb6 {[%clk 0:02:27]} 10. Qxb6 {[%clk 0:02:41]}  axb6 {[%clk 0:02:28]} 11. a3 {[%clk 0:02:40]}  Nc6 {[%clk 0:02:25]} 12. Rc1 {[%clk 0:02:40]}  Ke7 {[%clk 0:02:21]} 13. Nge2 {[%clk 0:02:40]}  g5 {[%clk 0:02:20]} 14. Ng3 {[%clk 0:02:38]}  f4 {[%clk 0:02:14]} 15. Nf5+ {[%clk 0:02:34]}  Kd7 {[%clk 0:01:58]} 16. Nxd6 {[%clk 0:02:32]}  Kxd6 {[%clk 0:01:59]} 17. exf4 {[%clk 0:02:26]}  gxf4 {[%clk 0:01:54]} 18. Nb5+ {[%clk 0:02:26]}  Kd7 {[%clk 0:01:51]} 19. f3 {[%clk 0:02:26]}  Rac8 {[%clk 0:01:46]} 20. Kf2 {[%clk 0:02:24]}  Na5 {[%clk 0:01:46]} 21. Nc3 {[%clk 0:02:19]}  Nb3 {[%clk 0:01:44]} 22. Bb5+ {[%clk 0:02:18]}  Ke7 {[%clk 0:01:41]} 23. Rcd1 {[%clk 0:02:18]}  Kf7 {[%clk 0:01:35]} 24. Ba4 {[%clk 0:02:13]}  Na5 {[%clk 0:01:34]} 25. Ne2 {[%clk 0:02:11]}  Bf5 {[%clk 0:01:21]} 26. Nxf4 {[%clk 0:02:08]}  Bc2 {[%clk 0:01:21]} 27. Bxc2 {[%clk 0:02:03]}  Rxc2+ {[%clk 0:01:22]} 28. Kg3 {[%clk 0:02:02]}  Rg8+ {[%clk 0:01:20]} 29. Kh3 {[%clk 0:02:02]}  Rxb2 {[%clk 0:01:21]} 30. Rb1 {[%clk 0:02:00]}  Rd2 {[%clk 0:01:01]} 31. Rhd1 {[%clk 0:01:58]}  Rxd1 {[%clk 0:00:52]} 32. Rxd1 {[%clk 0:01:59]}  Rd8 {[%clk 0:00:50]} 33. Rc1 {[%clk 0:01:57]}  Rd7 {[%clk 0:00:46]} 34. Rc8 {[%clk 0:01:40]}  b5 {[%clk 0:00:42]} 35. Rc5 {[%clk 0:01:37]}  Nc4 {[%clk 0:00:35]} 36. Rxb5 {[%clk 0:01:33]}  Nxa3 {[%clk 0:00:35]} 37. Rxd5 {[%clk 0:01:26]}  Rxd5 {[%clk 0:00:34]} 38. Nxd5 {[%clk 0:01:26]}  Nc2 {[%clk 0:00:34]} 39. Kg4 {[%clk 0:01:19]}  Nxd4 {[%clk 0:00:34]} 40. Kf4 {[%clk 0:01:20]}  Ke6 {[%clk 0:00:33]} 41. Ke4 {[%clk 0:01:16]}  Nc6 {[%clk 0:00:24]} 42. Nf4+ {[%clk 0:01:16]}  Kd6 {[%clk 0:00:23]} 43. Kf5 {[%clk 0:01:16]}  b5 {[%clk 0:00:16]} 44. Kxf6 {[%clk 0:01:16]}  b4 {[%clk 0:00:17]} 45. Nd3 {[%clk 0:01:16]}  b3 {[%clk 0:00:17]} 46. Kg7 {[%clk 0:01:13]}  Kd5 {[%clk 0:00:17]} 47. Kxh7 {[%clk 0:01:11]}  Kd4 {[%clk 0:00:17]} 48. Nb2 {[%clk 0:01:10]}  Kc3 {[%clk 0:00:18]} 49. Na4+ {[%clk 0:01:11]}  Kb4 {[%clk 0:00:18]} 50. Nb2 {[%clk 0:01:11]}  Ka3 {[%clk 0:00:15]} 51. Nd1 {[%clk 0:00:56]}  Ne5 {[%clk 0:00:12]} 52. f4 {[%clk 0:00:54]}  Nd3 {[%clk 0:00:12]} 53. f5 {[%clk 0:00:53]}  Nf2 {[%clk 0:00:13]} 54. Nc3 {[%clk 0:00:38]}  b2 {[%clk 0:00:11]} 55. f6 {[%clk 0:00:37]}  Kb3 {[%clk 0:00:12]} 56. Nb1 {[%clk 0:00:36]}  Ne4 {[%clk 0:00:09]} 57. f7 {[%clk 0:00:34]}  Ng5+ {[%clk 0:00:09]} 58. Kg6 {[%clk 0:00:34]}  Nxf7 {[%clk 0:00:10]} 59. Kxf7 {[%clk 0:00:35]}  Kc2 {[%clk 0:00:10]} 60. Na3+ {[%clk 0:00:32]}  Kb3 {[%clk 0:00:10]} 61. Nb1 {[%clk 0:00:30]}  Kc2 {[%clk 0:00:11]} 62. Na3+ {[%clk 0:00:25]}  Kb3 {[%clk 0:00:11]} 63. Nb1 {[%clk 0:00:22]} 1/2-1/2


[Site "https://www.chess.com"]

[Event "Titled Tuesday Blitz August 08 Late 2023"]
[White "Carrasco Miranda, Andres"]
[Black "Krishnan, Varun"]
[WhiteFideId "3405990"]
[BlackFideId "5054508"]
[WhiteElo "2351"]
[BlackElo "2570"]
[Result "0-1"]
[Round "3"]
[TimeControl "180+1"]
[Date "2023.08.08"]
[WhiteClock "0:01:00"]
[BlackClock "0:00:56"]
[Board "108"]

1. d4 {[%clk 0:03:00]}  Nf6 {[%clk 0:02:15]} 2. c4 {[%clk 0:02:59]}  c6 {[%clk 0:02:13]} 3. Nf3 {[%clk 0:02:57]}  d5 {[%clk 0:02:13]} 4. Qb3 {[%clk 0:02:56]}  dxc4 {[%clk 0:02:12]} 5. Qxc4 {[%clk 0:02:57]}  g6 {[%clk 0:02:11]} 6. Bg5 {[%clk 0:02:55]}  Bg7 {[%clk 0:02:11]} 7. Nc3 {[%clk 0:02:55]}  O-O {[%clk 0:02:12]} 8. e3 {[%clk 0:02:56]}  Nbd7 {[%clk 0:02:03]} 9. Be2 {[%clk 0:02:55]}  Nb6 {[%clk 0:02:03]} 10. Qb3 {[%clk 0:02:55]}  Be6 {[%clk 0:02:03]} 11. Qc2 {[%clk 0:02:47]}  Nbd5 {[%clk 0:02:01]} 12. a3 {[%clk 0:02:43]}  Nxc3 {[%clk 0:01:58]} 13. bxc3 {[%clk 0:02:44]}  Bf5 {[%clk 0:01:57]} 14. Qb3 {[%clk 0:02:40]}  Ne4 {[%clk 0:01:56]} 15. Bf4 {[%clk 0:02:38]}  Qa5 {[%clk 0:01:56]} 16. Rc1 {[%clk 0:02:06]}  c5 {[%clk 0:01:52]} 17. O-O {[%clk 0:02:02]}  Rac8 {[%clk 0:01:48]} 18. Be5 {[%clk 0:01:59]}  cxd4 {[%clk 0:01:45]} 19. cxd4 {[%clk 0:01:56]}  Nd2 {[%clk 0:01:33]} 20. Nxd2 {[%clk 0:01:53]}  Qxd2 {[%clk 0:01:08]} 21. Rxc8 {[%clk 0:01:49]}  Rxc8 {[%clk 0:01:08]} 22. Bxg7 {[%clk 0:01:49]}  Qxe2 {[%clk 0:00:59]} 23. Bh6 {[%clk 0:01:44]}  Bd3 {[%clk 0:00:58]} 24. Ra1 {[%clk 0:01:00]}  Rc2 {[%clk 0:00:56]} 0-1


[Site "https://www.chess.com"]

[Event "Titled Tuesday Blitz August 08 Late 2023"]
[White "Przybylski, Wojciech"]
[Black "Deviprasath, Sharvesh"]
[WhiteFideId "1117599"]
[BlackFideId "30938228"]
[WhiteElo "2566"]
[BlackElo "2346"]
[Result "0-1"]
[Round "3"]
[TimeControl "180+1"]
[Date "2023.08.08"]
[WhiteClock "0:00:01"]
[BlackClock "0:01:22"]
[Board "109"]

1. e4 {[%clk 0:03:00]}  c5 {[%clk 0:03:00]} 2. Nf3 {[%clk 0:03:00]}  d6 {[%clk 0:02:56]} 3. d4 {[%clk 0:03:00]}  cxd4 {[%clk 0:02:57]} 4. Nxd4 {[%clk 0:03:00]}  Nf6 {[%clk 0:02:58]} 5. Nc3 {[%clk 0:03:01]}  g6 {[%clk 0:02:58]} 6. h4 {[%clk 0:02:59]}  Bg7 {[%clk 0:02:58]} 7. Nb3 {[%clk 0:02:58]}  O-O {[%clk 0:02:58]} 8. Be2 {[%clk 0:02:57]}  a5 {[%clk 0:02:58]} 9. h5 {[%clk 0:02:55]}  a4 {[%clk 0:02:59]} 10. Nd2 {[%clk 0:02:53]}  a3 {[%clk 0:02:59]} 11. hxg6 {[%clk 0:02:45]}  fxg6 {[%clk 0:02:56]} 12. Bc4+ {[%clk 0:02:43]}  e6 {[%clk 0:02:45]} 13. Rb1 {[%clk 0:02:42]}  Nc6 {[%clk 0:02:43]} 14. Nf3 {[%clk 0:02:37]}  Ng4 {[%clk 0:02:35]} 15. Ne2 {[%clk 0:02:16]}  axb2 {[%clk 0:02:26]} 16. Bxb2 {[%clk 0:02:13]}  Qa5+ {[%clk 0:02:25]} 17. c3 {[%clk 0:02:03]}  Qc5 {[%clk 0:02:25]} 18. Qb3 {[%clk 0:01:24]}  Qxf2+ {[%clk 0:02:23]} 19. Kd1 {[%clk 0:01:24]}  Ne3+ {[%clk 0:02:19]} 20. Kc1 {[%clk 0:01:24]}  Na5 {[%clk 0:02:16]} 21. Qb5 {[%clk 0:01:05]}  Naxc4 {[%clk 0:02:08]} 22. Re1 {[%clk 0:00:50]}  Rxa2 {[%clk 0:02:04]} 23. Qb3 {[%clk 0:00:43]}  Rxf3 {[%clk 0:01:53]} 24. Rd1 {[%clk 0:00:23]}  Qxe2 {[%clk 0:01:52]} 25. gxf3 {[%clk 0:00:21]}  Rxb2 {[%clk 0:01:48]} 26. Rxb2 {[%clk 0:00:18]}  Nxb2 {[%clk 0:01:48]} 27. Rxd6 {[%clk 0:00:13]}  Nd3+ {[%clk 0:01:45]} 28. Kb1 {[%clk 0:00:12]}  Qe1+ {[%clk 0:01:39]} 29. Ka2 {[%clk 0:00:12]}  Qd2+ {[%clk 0:01:39]} 30. Ka3 {[%clk 0:00:10]}  Qc1+ {[%clk 0:01:39]} 31. Ka2 {[%clk 0:00:08]}  Nc2 {[%clk 0:01:36]} 32. Qc4 {[%clk 0:00:03]}  Bf8 {[%clk 0:01:34]} 33. Rxd3 {[%clk 0:00:01]}  Na3 {[%clk 0:01:24]} 34. Kb3 {[%clk 0:00:01]}  Qb1+ {[%clk 0:01:22]} 35. Ka4 {[%clk 0:00:01]}  Nxc4 {[%clk 0:01:21]} 36. Rd8 {[%clk 0:00:01]}  b5# {[%clk 0:01:22]} 0-1


[Site "https://www.chess.com"]

[Event "Titled Tuesday Blitz August 08 Late 2023"]
[White "Skaric, Djuro"]
[Black "Graif, William"]
[WhiteFideId "934569"]
[BlackFideId "2609835"]
[WhiteElo "2329"]
[BlackElo "2558"]
[Result "0-1"]
[Round "3"]
[TimeControl "180+1"]
[Date "2023.08.08"]
[WhiteClock "0:01:35"]
[BlackClock "0:00:20"]
[Board "112"]

1. g3 {[%clk 0:03:00]}  e5 {[%clk 0:02:58]} 2. Bg2 {[%clk 0:03:01]}  Nc6 {[%clk 0:02:57]} 3. d3 {[%clk 0:03:01]}  g6 {[%clk 0:02:50]} 4. e4 {[%clk 0:02:59]}  Bg7 {[%clk 0:02:49]} 5. Nc3 {[%clk 0:02:59]}  d6 {[%clk 0:02:42]} 6. f4 {[%clk 0:02:57]}  Nge7 {[%clk 0:02:27]} 7. Nf3 {[%clk 0:02:56]}  Bg4 {[%clk 0:02:22]} 8. h3 {[%clk 0:02:55]}  Bxf3 {[%clk 0:02:21]} 9. Qxf3 {[%clk 0:02:54]}  Nd4 {[%clk 0:02:02]} 10. Qf2 {[%clk 0:02:54]}  Qd7 {[%clk 0:01:32]} 11. fxe5 {[%clk 0:02:51]}  dxe5 {[%clk 0:01:26]} 12. O-O {[%clk 0:02:51]}  O-O {[%clk 0:01:11]} 13. Be3 {[%clk 0:02:41]}  c6 {[%clk 0:01:09]} 14. a4 {[%clk 0:02:32]}  f5 {[%clk 0:01:03]} 15. Bxd4 {[%clk 0:02:32]}  exd4 {[%clk 0:00:59]} 16. Ne2 {[%clk 0:02:27]}  fxe4 {[%clk 0:00:59]} 17. Qe1 {[%clk 0:02:27]}  Rxf1+ {[%clk 0:00:52]} 18. Bxf1 {[%clk 0:02:27]}  e3 {[%clk 0:00:49]} 19. a5 {[%clk 0:02:21]}  Rf8 {[%clk 0:00:46]} 20. Bg2 {[%clk 0:02:14]}  Rf2 {[%clk 0:00:40]} 21. Rd1 {[%clk 0:02:12]}  Be5 {[%clk 0:00:24]} 22. c3 {[%clk 0:02:11]}  c5 {[%clk 0:00:24]} 23. cxd4 {[%clk 0:02:10]}  cxd4 {[%clk 0:00:25]} 24. Rc1 {[%clk 0:02:08]}  Qf5 {[%clk 0:00:20]} 25. g4 {[%clk 0:02:04]}  Qxd3 {[%clk 0:00:20]} 26. Bf1 {[%clk 0:01:39]}  Bh2+ {[%clk 0:00:19]} 27. Kh1 {[%clk 0:01:35]}  Qe4+ {[%clk 0:00:20]} 0-1


[Site "https://www.chess.com"]